[Event "Israeli Team-ch 2023"]
[Site "Petah Tikva"]
[Date "2023.05.05"]
[Round "9.28"]
[White "Parkhov, Yair"]
[Black "Rozen, Eytan"]
[Result "1/2-1/2"]
[ECO "D35"]
[WhiteElo "2467"]
[BlackElo "2440"]
[Annotator "TA"]
[PlyCount "159"]
[EventDate "2023.01.13"]
[EventCountry "ISR"]
[SourceTitle "playchess.com"]
[Source "ChessBase"]
[SourceQuality "1"]
[TimeControl "40/5400+30:1800+30"]

{[%evp 12,159,19,18,21,21,22,16,28,29,48,31,31,19,30,24,31,30,48,44,60,46,63,0,16,0,45,49,37,44,43,0,62,43,59,16,12,12,7,11,34,-52,-14,-6,0,0,0,-8,0,-73,0,-61,-93,-52,0,-341,-176,-326,-11,-113,-85,-678,0,-29990,-179,-179,-179,-179,-179,-179,0,-179,0,0,0,-179,-179,-179,-179,-179,-179,-179,0,0,0,-179,-187,-185,-170,-182,-176,-180,-159,-179,-116,-129,0,-149,-142,-126,-59,-64,-72,-70,-62,-102,-26,-349,-331,-535,-521,-520,-513,-520,-479,-438,-399,-356,-310,-280,0,-364,0,-270,-183,-183,-183,-183,-183,-183,0,0,0,-183,-183,-183,-183,-183,-20,-20,-20,-20,-20,-20,-20,-20,0,-20,-18,-18]} 1. d4 {[%emt 0:00:02]} d5 {[%emt 0:06:45]} 2. c4 {[%emt 0:00:10]} e6 {[%emt 0:01:21]} 3. Nc3 {[%emt 0:00:37]} Nf6 {[%emt 0:00:31]} 4. cxd5 {[%emt 0:00:07]} exd5 {[%emt 0:00:06]} 5. Bg5 {[%emt 0:00:07]} c6 {[%emt 0:00:39]} 6. e3 {[%emt 0:00:19]} h6 {[%emt 0:01:13]} 7. Bh4 {[%emt 0:00:05]} Bd6 {[%emt 0:00:08] D35: Queen's Gambit Declined: Exchange Variation.} 8. Bd3 {[%emt 0:00:30]} O-O {[%emt 0:00:17]} 9. Nf3 {[%emt 0:00:46]} Nbd7 {[%emt 0:03:57]} 10. O-O {[%emt 0:00:50]} a5 {[%emt 0:01:35]} 11. Rc1 {[%emt 0:08:17]} Re8 {[%emt 0:02:59] [#]} 12. Re1 $146 {[%emt 0:06:48]} ({Predecessor:} 12. Qc2 Be7 13. Bg3 Nf8 14. h3 Bd6 15. Ne5 Qe7 16. Na4 Ne4 17. Bh2 f6 18. Nf3 Bxh2+ 19. Nxh2 {½-½ Dornauer,J (2151)-Ennsberger,U (2271) AUT-chT2M 2223 2022 (2.6)}) 12... g5 {[%emt 0:09:10]} 13. Bg3 {[%emt 0:07:41]} Bxg3 {[%emt 0:00:25]} 14. fxg3 {[%emt 0:02:25]} b5 {[%emt 0:04:06]} 15. Bb1 {[%emt 0:14:52]} Ba6 {[%emt 0:06:32]} 16. Qc2 {[%emt 0:11:34]} b4 {[%emt 0:02:19]} 17. Nd1 {[%emt 0:03:37]} (17. Na4 $14 {feels stronger.}) 17... c5 $1 $11 {[%emt 0:08:39]} 18. Nf2 {[%emt 0:02:33]} Ne4 {[%emt 0:05:15]} 19. dxc5 {[%emt 0:00:46]} (19. Nxe4 dxe4 20. Red1 Qf6 $15) 19... Ndxc5 {[%emt 0:00:32]} 20. Nxe4 {[%emt 0:00:24]} Nxe4 {[%emt 0:02:11]} 21. Qd1 {[%emt 0:02:06]} (21. Qc6 $5 {[%cal Rc6h6]}) 21... Qd6 {[%emt 0:16:57]} (21... Rc8 $11) 22. Nd4 $14 {[%emt 0:01:31]} Rac8 {[%emt 0:08:23] Inhibits Rc6.} 23. Qh5 {[%emt 0:13:21]} (23. Rxc8 {simplifies} Bxc8 24. Qa4 Qd8 25. Qc6) 23... Qf6 {[%emt 0:06:45]} 24. Qf3 {[%emt 0:00:22]} Qe5 {[%emt 0:02:14]} 25. Rcd1 {[%emt 0:01:51]} Rc7 {[%emt 0:01:41]} 26. Nf5 {[%emt 0:01:55]} (26. g4 $14) 26... Re6 {[%emt 0:03:12]} (26... Qxb2 27. Nxh6+ Kf8 28. Rxd5 $14) (26... Rc6 {simplifies} 27. Rd4 Bc8 28. g4 Bxf5 29. Qxf5 Qxf5 30. gxf5 Nf6) 27. g4 {[%emt 0:01:59]} a4 {[%emt 0:03:05]} (27... Qxb2 28. Rxd5 Nf6 29. Rd8+ (29. Nxh6+ Kf8 $16) (29. Rxa5 $2 Rc1 $19) 29... Re8 30. Nxh6+ Kf8 31. Rdd1 $16) 28. Rd4 {[%emt 0:01:59]} a3 {[%emt 0:00:12]} 29. bxa3 {[%emt 0:02:31]} bxa3 {[%emt 0:00:03]} 30. Qh3 {[%emt 0:00:42]} (30. Bxe4 $11 dxe4 31. Qd1) 30... Nc3 {[%emt 0:02:40]} (30... Nd6 $17) 31. Bd3 {[%emt 0:02:46]} (31. Nxh6+ $11 Kf8 32. Nf5) 31... Bxd3 $40 {[%emt 0:00:36][%mdl 128] White is in trouble.} (31... Nxa2 32. Nxh6+ Kf8 33. Nf5 $11) 32. Rxd3 {[%emt 0:00:04]} Kh7 {[%emt 0:00:29]} (32... Nxa2 33. Rxa3 (33. Nxh6+ Rxh6 34. Qxh6 Nc3 $11) 33... Qb2 34. Nxh6+ Rxh6 35. Rxa2 $16 (35. Qxh6 Qxa3 36. Qxg5+ Kh7 $11)) ({Black should play} 32... Ne4 $15 33. Qf3 Rec6) 33. Qh5 $2 {[%emt 0:05:09][%mdl 8192]} (33. Qg3 $1 $11) 33... Ne4 {[%emt 0:00:44]} (33... Rf6 $142 {...Rb7 would be deadly.} 34. Rd2 Ne4) 34. Rf1 {[%emt 0:01:00]} (34. Nd4 $142 Rb6 35. Rf1) 34... Rec6 $2 {[%emt 0:00:46]} (34... Rf6 $19 35. Rdd1 Qb2) 35. Rxa3 {[%emt 0:01:46]} (35. h4 $1 $11 {keeps the balance.}) 35... Qb2 {[%emt 0:00:54]} 36. Ra8 {[%emt 0:01:11][%mdl 8192]} (36. Nxh6 $17 Rxh6 37. Rxf7+ Rxf7 {[%mdl 64] Remove Defender} 38. Qxf7+ Qg7 39. Qf5+ Rg6 40. Rd3) 36... Qe2 $2 {[%emt 0:00:29]} ({Better is} 36... Rf6 $19 {( -> ...Rc1)} 37. Rf8 Qa3) 37. g3 $2 {[%emt 0:04:10][%mdl 8192] [#]} (37. Rc8 $11 Qxf1+ {[%mdl 64] Remove Defender} 38. Kxf1 Rc1+ 39. Ke2 R1c2+ 40. Kf1 Rc1+ 41. Ke2 R1c2+ 42. Kf1 Rc1+) 37... Qxf1+ $2 {[%emt 0:00:25]} 38. Kxf1 $19 {[%emt 0:00:04]} Rc1+ {[%emt 0:00:02]} 39. Kg2 {[%emt 0:00:07][%csl Gf5][%cal Rh5h6]} R7c2+ $1 {[%emt 0:00:49][%mdl 1024] Black has strong compensation.} 40. Kh3 {[%emt 0:00:05][%csl Gf5][%cal Rh5h6]} Nf2+ $1 {[%emt 0:00:05]} 41. Kg2 {[%emt 0:30:05][%csl Gf5][%cal Rh5h6]} Ne4+ {[%emt 0:06:54]} 42. Kh3 {[%emt 0:00:00][%csl Gf5][%cal Rh5h6]} Nf2+ $1 {[%emt 0:00:02]} 43. Kg2 {[%emt 0:00:00][%csl Gf5][%cal Rh5h6]} Nxg4+ {[%emt 0:01:05]} 44. Kh3 {[%emt 0:00:00][%cal Rh5f7]} Nf2+ {[%emt 0:00:13]} 45. Kg2 {[%emt 0:00:00][%csl Gf5][%cal Rh5h6] [#]} Ne4+ $1 {[%emt 0:01:23]} 46. Kh3 {[%emt 0:00:00][%csl Gf5][%cal Rh5h6]} Nf2+ {[%emt 0:00:11]} 47. Kg2 {[%emt 0:06:46][%csl Gf5][%cal Rh5h6]} Ne4+ {[%emt 0:00:01]} 48. Kh3 {[%emt 0:00:00][%csl Gf5][%cal Rh5h6] [#]} g4+ $1 {[%emt 0:01:42][%mdl 576] Decoy} 49. Qxg4 {[%emt 0:00:00][%csl Gf5][%cal Rg4g7]} ({Avoid the trap} 49. Kh4 $2 Rxh2+ 50. Kxg4 Nf6+ 51. Kf4 Rxh5 $19) 49... Nf2+ {[%emt 0:00:05]} 50. Kh4 {[%emt 0:00:00][%csl Gf5][%cal Rg4g7]} Nxg4 {[%emt 0:00:06][%mdl 64] Discovered Attack} 51. Kxg4 {[%emt 0:00:00]} Rxh2 {[%emt 0:00:54][%mdl 4096] Endgame Threatens to win with ...Rf2. KRR-KRN} 52. Ra5 {[%emt 0:00:00]} Rd1 {[%emt 0:06:13]} (52... Rc4+ $19 53. Kf3 Rcc2 54. Rxd5 Rhf2+ 55. Ke4 Rxa2) 53. Ra6 $17 {[%emt 0:00:00]} Rc1 {[%emt 0:05:33]} (53... Re1 $17 {[%cal Od5d4] Hoping for ...d4!} 54. Kf4 Rf2+ 55. Kg4 Rh2) 54. Rf6 {[%emt 0:00:00]} (54. Ra5 $1 $11) 54... Rc4+ {[%emt 0:01:32]} 55. Kf3 {[%emt 0:00:00]} Ra4 {[%emt 0:05:06]} ({Much worse is} 55... Rxa2 $6 56. Rxh6+ Kg8 57. Ne7+ Kf8 58. Nf5 $11) (55... Rh1 $17 56. g4 h5) 56. Rxf7+ $15 {[%emt 0:00:00]} Kg6 {[%emt 0:00:01]} 57. Rf8 {[%emt 0:00:00]} Raxa2 {[%emt 0:00:59]} 58. Kf4 {[%emt 0:00:00] [#]} d4 {[%emt 0:02:19]} 59. Ne7+ $2 {[%emt 0:00:00][%mdl 8192]} (59. exd4 $11 Rhf2+ 60. Ke4) 59... Kg7 $19 {[%emt 0:00:20]} 60. Rd8 $2 {[%emt 0:00:00]} (60. Rc8 Rhf2+ 61. Ke4 dxe3 62. Nf5+ Kg6 63. Nxe3) 60... Rhf2+ {[%emt 0:02:57]} 61. Ke4 {[%emt 0:00:00]} dxe3 {[%emt 0:00:15]} 62. Nf5+ {[%emt 0:00:00]} Kg6 {[%emt 0:03:04]} ({Not} 62... Rxf5 63. Kxf5 Rf2+ 64. Kg4 $11) 63. Nxe3 {[%emt 0:00:00]} Ra4+ {[%emt 0:00:12]} 64. Kd3 {[%emt 0:00:00]} Ra3+ {[%emt 0:00:12]} 65. Ke4 {[%emt 0:00:00]} Ra4+ {[%emt 0:00:05]} 66. Kd3 $1 {[%emt 0:00:04]} Ra3+ {[%emt 0:00:03]} 67. Ke4 {[%emt 0:00:04]} Re2 {[%emt 0:02:16]} 68. Rd6+ {[%emt 0:00:08]} Kg5 {[%emt 0:00:10]} 69. Rd5+ {[%emt 0:00:05]} Kf6 {[%emt 0:00:50]} 70. Rd6+ {[%emt 0:00:05]} Kg5 $2 {[%emt 0:00:09]} ({Black should try} 70... Kg7 $19 71. Rd7+ Kf6 72. Rd6+ Kf7 73. Rd7+ Ke6) 71. Rd5+ $1 $11 {[%emt 0:00:05]} Kf6 $2 {[%emt 0:00:00]} (71... Kg6 $11 72. Rd6+ Kf7 73. Rd7+ Ke6) 72. Rd6+ $1 $19 {[%emt 0:00:07]} Kf7 {[%emt 0:00:21]} 73. Rd3 {[%emt 0:00:45]} Rxd3 {[%emt 0:00:14]} 74. Kxd3 {[%emt 0:00:04] KR-KN} Rf2 $2 {[%emt 0:00:19]} (74... Rb2 $19 {And now ...Kf6 would win.} 75. Ke4 h5) 75. Ng4 $1 $11 {[%emt 0:02:44][%csl LRf2,LRh6] The position is equal.} Rf3+ {[%emt 0:00:04]} 76. Ke4 {[%emt 0:00:12]} Rxg3 {[%emt 0:00:07]} 77. Nxh6+ {[%emt 0:00:14]} Kg6 {[%emt 0:00:09]} 78. Ng8 {[%emt 0:00:05]} Kf7 {[%emt 0:01:32]} 79. Nh6+ {[%emt 0:00:14]} Ke6 {[%emt 0:00:10]} 80. Kf4 {[%emt 0:00:08] An exciting game.   Weighted Error Value: White=0.64/Black=0.55} 1/2-1/2

[Event "Israeli Team-ch 2023"]
[Site "Petah Tikva"]
[Date "2023.05.05"]
[Round "9.29"]
[White "Raznikov, Danny"]
[Black "Gorodetzky, Matan"]
[Result "1-0"]
[ECO "D48"]
[WhiteElo "2482"]
[BlackElo "2333"]
[Annotator "TA"]
[PlyCount "125"]
[EventDate "2023.01.13"]
[EventCountry "ISR"]
[SourceTitle "playchess.com"]
[Source "ChessBase"]
[SourceQuality "1"]
[TimeControl "40/5400+30:1800+30"]

{[%evp 23,125,-16,-17,-14,-3,-8,-9,0,0,0,0,0,0,-7,17,8,18,9,20,14,16,17,12,0,0,0,0,0,0,0,0,-10,2,-8,18,0,0,0,0,0,26,15,64,52,70,0,0,0,48,16,15,6,7,5,22,0,0,0,18,0,0,-27,-31,-28,0,0,0,0,0,0,0,0,0,0,0,0,0,0,0,0,0,0,0,0,0,0,29967,29962,29987,668,29988,29989,29990,29991,29991,0,0,0,29991,29992,29992,29993,29996,29997]} 1. d4 {[%emt 0:00:08]} d5 {[%emt 1:31:00]} 2. c4 {[%emt 0:00:55]} e6 {[%emt 0:00:00]} 3. Nc3 {[%emt 0:01:37]} c5 {[%emt 0:00:00]} 4. e3 {[%emt 0:02:36]} dxc4 {[%emt 0:00:00]} 5. Bxc4 {[%emt 0:00:47]} Nf6 {[%emt 0:00:00]} 6. Nf3 {[%emt 0:01:03]} a6 {[%emt 0:00:00]} 7. O-O {[%emt 0:02:10]} b5 {[%emt 0:00:00]} 8. Bd3 {[%emt 0:06:12]} Bb7 {[%emt 0:00:00]} 9. dxc5 {[%emt 0:06:54]} Bxc5 {[%emt 0:00:00]} 10. a3 {[%emt 0:00:25]} Nbd7 {[%emt 0:00:00]} 11. b4 {[%emt 0:04:04]} Be7 {[%emt 0:00:00]} 12. Bb2 {[%emt 0:01:08]} O-O {[%emt 0:00:00]} 13. Qe2 {[%emt 0:17:01] D48: Semi-Slav: Meran System: 7...b5 8 Bd3 a6.} Rc8 {[%emt 0:00:00]} 14. Rfd1 {[%emt 0:02:58]} Qb6 {[%emt 0:00:00]} 15. Rac1 {[%emt 0:10:43] The position is equal.} h6 {[%emt 0:00:00]} 16. e4 {[%emt 0:08:15] [#]} Bd6 $146 {[%emt 0:00:00]} ({Predecessor:} 16... Rfd8 17. Nb1 Rxc1 18. Rxc1 Rc8 19. Rxc8+ Bxc8 20. Qc2 Bb7 21. Nbd2 Qc6 22. Qxc6 Bxc6 {1-0 Cifuentes Parada,R (2505)-Tissir,M (2436) Dos Hermanas op 4th 2004 (6)}) 17. Nb1 {[%emt 0:04:59] [#] Rxc8 would be deadly.} Rxc1 {[%emt 0:00:00]} 18. Rxc1 {[%emt 0:00:43] And now e5 would win.} Bf4 {[%emt 0:00:00]} 19. Nbd2 {[%emt 0:01:31]} Ng4 {[%emt 0:00:00]} 20. g3 {[%emt 0:09:54]} Bxd2 {[%emt 0:00:00]} 21. Nxd2 {[%emt 0:00:45]} Nge5 {[%emt 0:00:00]} 22. Bb1 {[%emt 0:01:51]} Rd8 {[%emt 0:00:00]} 23. h3 {[%emt 0:07:19]} Qd6 {[%emt 0:00:00][%cal Od6d2] ...Qxd2! is the strong threat.} 24. Nb3 {[%emt 0:01:31]} Nc4 {[%emt 0:00:00]} 25. Rd1 {[%emt 0:00:26]} Qe7 {[%emt 0:00:00]} 26. Bc1 {[%emt 0:00:59][%cal Bb2c1,Bc1e3,Be3d4][%mdl 32]} Rc8 {[%emt 0:00:00]} 27. Kh2 {[%emt 0:01:24]} Ncb6 {[%emt 0:00:00]} 28. Na5 {[%emt 0:01:21]} Ba8 {[%emt 0:00:00]} (28... Ne5 {with more complications.} 29. Qh5 Nbc4 30. Nb3 Rd8) 29. Be3 {[%emt 0:01:24]} (29. Bf4 $5) 29... Na4 {[%emt 0:00:00] White must now prevent ...Nc3.} 30. Bd4 {[%emt 0:02:05]} e5 {[%emt 0:00:00]} 31. Ba1 {[%emt 0:00:20]} Nf6 {[%emt 0:00:00]} (31... Rc3 $5) 32. Qe3 {[%emt 0:00:29]} Qc7 {[%emt 0:00:00]} (32... Ne8 $11 {deserves consideration.}) 33. f3 $14 {[%emt 0:00:41]} Nd7 {[%emt 0:00:00]} (33... Nc3 $2 34. Rc1 $18) 34. Nb3 {[%emt 0:00:35] White is more active.} (34. Ba2 $14) 34... Ndb6 $11 {[%emt 0:00:00]} 35. Na5 {[%emt 0:00:35]} Kh8 {[%emt 0:00:00]} (35... Nd7 $11 {might be stronger.}) 36. Kg2 {[%emt 0:00:16]} f6 {[%emt 0:01:10]} 37. h4 {[%emt 0:00:28]} Nc4 {[%emt 0:06:11]} 38. Nxc4 {[%emt 0:00:31]} bxc4 {[%emt 0:00:28]} 39. Bc2 {[%emt 0:01:20]} Bc6 {[%emt 0:00:16]} 40. g4 {[%emt 0:01:33]} Qf7 {[%emt 0:04:58]} 41. Rd2 {[%emt 0:07:00]} Bb5 {[%emt 0:03:37]} 42. Bc3 {[%emt 0:03:24]} Nxc3 {[%emt 0:02:24]} 43. Qxc3 {[%emt 0:00:08]} Qe8 {[%emt 0:03:06]} 44. Rd5 {[%emt 0:04:34]} Bc6 {[%emt 0:02:30]} 45. Rc5 {[%emt 0:01:23]} Bb5 {[%emt 0:00:18]} 46. a4 {[%emt 0:06:21]} Rxc5 {[%emt 0:00:48]} 47. bxc5 {[%emt 0:00:02]} Bxa4 {[%emt 0:00:08]} 48. Qxc4 {[%emt 0:00:08]} Bxc2 {[%emt 0:11:21]} 49. Qxc2 {[%emt 0:00:43][%mdl 4096] Endgame Hoping for c6. KQ-KQ} Qc6 {[%emt 0:00:15]} 50. Qc4 {[%emt 0:07:19][%cal Og4g5]} a5 {[%emt 0:00:34]} 51. g5 {[%emt 0:01:18]} fxg5 {[%emt 0:05:44]} 52. hxg5 {[%emt 0:00:04] Threatens to win with Qd5.} a4 {[%emt 0:01:16]} 53. Qd5 {[%emt 0:01:13]} Qa6 {[%emt 0:08:23]} 54. c6 {[%emt 0:00:30] g6 would kill now.} a3 $2 {[%emt 0:00:21][%mdl 8192] [#]} (54... Qe2+ $11 55. Kg3 h5) 55. c7 {[%emt 0:00:37]} (55. Qxe5 Qxc6 56. Qa5 Qc1 57. gxh6 Qb2+ 58. Kf1 gxh6 59. Qd8+ Kh7 60. Qe7+ Kh8 $11) 55... a2 {[%emt 0:00:03]} 56. Qd8+ {[%emt 0:00:56]} Kh7 {[%emt 0:00:01]} 57. c8=Q {[%emt 0:00:10]} (57. Kg3 {gets mated.} a1=Q 58. c8=Q Qg1+ 59. Kh4 hxg5+ 60. Qxg5 Qxg5+ 61. Kxg5 Qxc8 62. f4 Qc1 63. Kf5 exf4 64. Ke6 f3 65. Ke7 f2 66. Ke6 f1=Q 67. Kd5 Qb5+ 68. Ke6 Qh6+ 69. Kf7 Qf6#) 57... Qe2+ {[%emt 0:00:20]} 58. Kg3 {[%emt 0:01:19]} Qe1+ {[%emt 0:00:16]} 59. Kg2 $2 {[%emt 0:00:24]} (59. Kg4 {mates} Qg1+ 60. Kf5 Qxg5+ 61. Qxg5 hxg5 62. Qa8 (62. Kxe5 a1=Q+ 63. Kd5 Qd1+ 64. Ke5 Qa1+ 65. Kd5 Qd1+ 66. Ke5 Qa1+ $11) 62... a1=B 63. Qxa1 g4 64. fxg4 g5 65. Kf6 Kh8 66. Qa7 Kg8 67. Qg7#) 59... Qe2+ {[%emt 0:00:09]} (59... a1=B $2 {is a self mate.} 60. g6+ Kxg6 61. Qf5#) 60. Kg3 {[%emt 0:00:00]} Qe1+ {[%emt 0:00:02]} 61. Kg4 {[%emt 0:00:34] White mates.} Qg1+ {[%emt 0:00:25]} 62. Kf5 {[%emt 0:00:24][%csl Gc8][%cal Rd8h8]} g6+ {[%emt 0:00:05]} 63. Ke6 {[%emt 0:00:18] Weighted Error Value: White=0.16 (very precise) /Black=0.20 (precise)} 1-0

[Event "Israeli Team-ch 2023"]
[Site "Petah Tikva"]
[Date "2023.05.05"]
[Round "9.30"]
[White "Zlatin, Alexander"]
[Black "Rozentalis, Eduardas"]
[Result "0-1"]
[ECO "B10"]
[WhiteElo "2324"]
[BlackElo "2507"]
[Annotator "TA"]
[PlyCount "94"]
[EventDate "2023.01.13"]
[EventCountry "ISR"]
[SourceTitle "playchess.com"]
[Source "ChessBase"]
[SourceQuality "1"]
[TimeControl "40/5400+30:1800+30"]

{[%evp 13,94,0,0,-23,-20,-43,-40,-45,-34,-41,-40,-46,-49,-49,-37,-40,-38,-40,-43,-34,-20,-23,-23,-26,0,0,0,-10,0,0,0,-46,-2,-17,-8,-29,-33,-34,-38,-87,-31,-101,-20,-59,-30,-39,-19,-79,-72,-87,-80,-266,-262,-590,-590,-585,-560,-867,-821,-1083,-1060,-976,-845,-845,-803,-2385,-2075,-29976,-5119,-29973,-29974,-29979,-29980,-29984,-29984,-29986,-29987,-29987,-29986,-29986,-29986,-29985,-29985]} 1. e4 {[%emt 1:31:00]} c6 {[%emt 0:00:12]} 2. c4 {[%emt 0:00:00]} d5 {[%emt 0:01:05]} 3. exd5 {[%emt 0:00:00]} cxd5 {[%emt 0:00:10]} 4. cxd5 {[%emt 0:00:00]} Nf6 {[%emt 0:00:20]} 5. Qa4+ {[%emt 0:00:00]} Nbd7 {[%emt 0:00:45][%cal Bb8d7,Bd7b6,Bb6d5][%mdl 32]} 6. Nc3 {[%emt 0:00:00]} g6 {[%emt 0:00:24]} 7. Nf3 {[%emt 0:00:00]} Bg7 {[%emt 0:00:25]} 8. d4 {[%emt 0:00:00][%cal Od5d6] B10: Caro-Kann: 2 d3 and 2 c4.} O-O {[%emt 0:00:26]} 9. Qb3 {[%emt 0:00:00][%cal Od5d6]} Nb6 {[%emt 0:00:51]} 10. Bg5 {[%emt 0:00:00] Black is slightly better.} Nfxd5 {[%emt 0:03:03]} 11. Nxd5 {[%emt 0:00:00] [#]} Nxd5 $146 {[%emt 0:00:14]} (11... Qxd5 {simplifies} 12. Qxd5 Nxd5 13. Be2 Be6) ({Predecessor:} 11... Qxd5 12. Qxd5 Nxd5 13. Bc4 e6 14. O-O b6 15. Bb5 Bb7 16. Rac1 h6 17. Bh4 g5 {0-1 Kuenzler,T (2051)-Wind,M (1640) Nord West Cup 2000 (2)}) 12. Bc4 {[%emt 0:00:00]} Nb6 {[%emt 0:00:55]} 13. Be2 {[%emt 0:00:00]} Be6 {[%emt 0:04:18]} (13... Bxd4 $2 14. Rd1 $18) 14. Qb4 {[%emt 0:00:00]} h6 {[%emt 0:14:41]} 15. Be3 {[%emt 0:00:00]} ({Reject} 15. Bxe7 Nd5 16. Bxd8 Nxb4 $17) 15... Rc8 {[%emt 0:03:28]} 16. O-O {[%emt 0:00:00]} Bc4 {[%emt 0:00:28]} 17. Bxc4 {[%emt 0:00:00]} Rxc4 {[%emt 0:00:06]} 18. Qd2 {[%emt 0:00:00]} g5 {[%emt 0:03:35]} 19. b3 {[%emt 0:00:00]} Rc8 {[%emt 0:01:44]} 20. Rac1 {[%emt 0:00:00]} Nd5 {[%emt 0:02:21]} 21. h4 {[%emt 0:00:00]} f6 {[%emt 0:05:21][%cal Bf7f6,Bf6f5][%mdl 32]} 22. Qd3 {[%emt 0:00:00]} (22. hxg5 $11 Rxc1 23. Rxc1 hxg5 24. Qe2) 22... Qd7 {[%emt 0:02:29]} (22... g4 $5 {[%cal Rg4f3]} 23. Rxc8 Qxc8 $15) 23. Rc5 {[%emt 0:00:00]} b6 {[%emt 0:04:38]} 24. Rc4 {[%emt 0:00:00]} g4 {[%emt 0:01:35]} 25. Nh2 {[%emt 0:00:00]} f5 {[%emt 0:00:40]} 26. Rfc1 {[%emt 0:00:00] [#]} (26. Bd2 $15) 26... Rcd8 {[%emt 0:06:16] Black is more active.} ({Better is} 26... Rxc4 $1 $17 27. Rxc4 f4) 27. g3 {[%emt 0:00:00]} (27. Bd2 $15) 27... e6 {[%emt 0:03:01]} (27... b5 $17 28. Rc5 f4) 28. Qd2 {[%emt 0:03:08]} Kh7 {[%emt 0:12:11]} 29. Bf4 {[%emt 0:00:38]} b5 {[%emt 0:07:38]} (29... Nxf4 {simplifies} 30. Qxf4 Qd6 31. Qxd6 Rxd6 32. h5 Kg8) 30. Rc7 {[%emt 0:03:24]} Nxc7 $17 {[%emt 0:01:21]} 31. Rxc7 {[%emt 0:00:03]} Qe8 {[%emt 0:00:19]} 32. Qc2 $2 {[%emt 0:05:31] White does not recover from this.} (32. Bxh6 $17 {was called for.} Rf7 33. Bxg7 Rxg7 34. Rxg7+ Kxg7 35. Nf1) 32... Rc8 {[%emt 0:03:29]} ({Don't play} 32... Rxd4 33. Rxg7+ Kxg7 34. Be5+ Kg6 35. Bxd4 $16) 33. Nxg4 $2 {[%emt 0:02:04]} (33. Nf1) 33... Rxc7 $19 {[%emt 0:00:22]} 34. Bxc7 {[%emt 0:00:02]} Qc8 {[%emt 0:00:21] Hoping for ...Rf7.} ({Not} 34... Bxd4 35. Be5 Bxe5 36. Nxe5 $17) 35. d5 {[%emt 0:00:03]} exd5 {[%emt 0:00:35] aiming for ...Rf7.} 36. Ne3 {[%emt 0:00:39]} d4 {[%emt 0:00:38]} 37. Nd5 {[%emt 0:00:05]} Qd7 {[%emt 0:01:35]} 38. Qc5 {[%emt 0:02:14]} Rc8 {[%emt 0:00:23] White must now prevent ...d3.} 39. a4 {[%emt 0:00:28]} d3 {[%emt 0:00:26] ( -> ...d2)} 40. Kf1 {[%emt 0:00:12]} d2 {[%emt 0:00:27]} (40... Rxc7 $142 41. Nxc7 d2 42. Qxb5 d1=Q+ 43. Kg2 Qxc7 44. Qxf5+ Kh8 45. Qe4 Qb8 46. Qe3 Qf8 47. Qf4 Qa8+ 48. f3 Qe2+ 49. Kh3 Qaxf3 50. Qxf3 Qxf3 51. Kh2 Be5 52. Kg1 Bxg3 53. b4 Qf2+ 54. Kh1 Qh2#) 41. Ke2 {[%emt 0:30:11] [#]} Rxc7 $1 {[%emt 0:30:32][%mdl 576] Deflection. Black mates.} 42. Qxc7 {[%emt 0:00:04]} (42. Qxb5 d1=B+) 42... Qxd5 {[%emt 0:00:05]} 43. Qc2 {[%emt 0:00:03] [#]} Bc3 $1 {[%emt 0:00:57][%mdl 512]} 44. f3 {[%emt 0:01:05]} (44. axb5 Qe6+) 44... bxa4 {[%emt 0:01:40]} 45. bxa4 {[%emt 0:00:18]} Qc4+ {[%emt 0:00:25]} 46. Ke3 {[%emt 0:00:06]} Bd4+ {[%emt 0:00:12]} 47. Kxd2 {[%emt 0:00:39] [#]} Be3+ $1 {[%emt 0:00:08][%mdl 576] Deflection. A superb game by Rozentalis.   Weighted Error Value: White=0.86/Black=0.23 (precise)} 0-1

[Event "Israeli Team-ch 2023"]
[Site "Petah Tikva"]
[Date "2023.05.05"]
[Round "9.31"]
[White "Tzidkiya, Yeshaayahu"]
[Black "Nabaty, Tamir"]
[Result "1-0"]
[ECO "C41"]
[WhiteElo "2415"]
[BlackElo "2632"]
[Annotator "TA"]
[PlyCount "48"]
[EventDate "2023.01.13"]
[EventCountry "ISR"]
[SourceTitle "playchess.com"]
[Source "ChessBase"]
[SourceQuality "1"]
[TimeControl "40/5400+30:1800+30"]

{[%evp 9,48,41,46,44,105,97,129,140,260,233,424,172,427,419,548,499,557,498,643,666,895,875,1519,1507,1966,1434,1256,1250,1331,650,607,502,29989,29990,29990,29991,29997,29995,29995,857,29986]} 1. e4 {[%emt 0:00:03]} e5 {[%emt 0:00:05]} 2. Nf3 {[%emt 0:00:08]} d6 {[%emt 0:00:27]} 3. Bc4 {[%emt 0:00:17]} Be6 {[%emt 0:00:21]} 4. Bxe6 {[%emt 0:00:26]} fxe6 {[%emt 0:00:07]} 5. O-O {[%emt 0:00:24]} Nf6 {[%emt 0:00:23]} 6. d3 {[%emt 0:00:20] C41: Philidor Defence.} d5 {[%emt 0:00:24]} (6... Be7 $14) 7. Nxe5 $16 {[%emt 0:00:21] [#]} Bd6 $146 {[%emt 0:00:47]} ({Predecessor:} 7... dxe4 8. dxe4 Nxe4 9. Qxd8+ Kxd8 10. Nf7+ Ke7 11. Nxh8 Nf6 12. Nc3 Nc6 13. Bg5 g6 {1-0 Neil,C (476)-Sagis,R (301) SN-2019-0-00979}) 8. Nf3 {[%emt 0:00:24] [#] Hoping for e5. White is better.} Ng4 {[%emt 0:00:36]} (8... dxe4 $16 {was necessary.} 9. dxe4 Nc6) 9. h3 {[%emt 0:00:43]} Nf6 $2 {[%emt 0:00:48]} (9... dxe4 10. dxe4 Nh6 11. Bxh6 gxh6) 10. Nc3 {[%emt 0:00:22]} (10. e5 $142) 10... c6 $2 {[%emt 0:00:39]} (10... dxe4 11. dxe4 (11. Nxe4 Nxe4 12. dxe4 Nc6 $16) 11... Nc6) 11. e5 $18 {[%emt 0:00:23]} Bc5 {[%emt 0:02:20]} 12. exf6 {[%emt 0:00:14]} gxf6 {[%emt 0:00:02]} 13. Nh4 {[%emt 0:01:18]} Ke7 {[%emt 0:00:23]} 14. Re1 {[%emt 0:00:29]} e5 {[%emt 0:00:54]} 15. d4 {[%emt 0:00:17]} Bd6 {[%emt 0:00:34]} 16. Nf5+ {[%emt 0:00:22]} Ke6 {[%emt 0:00:25]} 17. Nxd6 {[%emt 0:00:30]} Kxd6 {[%emt 0:00:56]} 18. dxe5+ {[%emt 0:00:25]} fxe5 {[%emt 0:00:16]} 19. Qh5 {[%emt 0:00:26]} Nd7 {[%emt 0:00:44]} 20. Bg5 {[%emt 0:00:32] Prevents Qf6} Qc7 {[%emt 0:00:30]} (20... Qe8 $18 21. Qh6+ Qg6) 21. Qh6+ {[%emt 0:00:22]} Kc5 {[%emt 0:00:35]} 22. Be7+ {[%emt 0:00:16]} Kc4 {[%emt 0:01:08]} 23. Qh4+ {[%emt 0:00:33]} d4 {[%emt 0:00:23]} 24. Nb1 {[%emt 0:01:58]} (24. b3+ $142 Kxc3 25. Qg3+ Kb2 26. Qd3 Qd6 27. a3 Qxe7 28. Reb1#) 24... Qd8 {[%emt 0:06:42] White took control after the opening.   Weighted Error Value: White=1.15/Black=0.99} 1-0